bitfinex-derivatives/quotes_SOLF0:USTF0_20240830
["timestamp","ask_amount","ask_price","bid_price","bid_amount"]
[1725042337262,3.6816,135.83,135.8,3.6823]
[1725042338158,35.39503571,135.83,135.8,0.0519871]
[1725042338466,35.34,135.81,135.7,1.4296]
[1725042338668,3.6836,135.76,135.73,3.6843]
[1725042339472,3.7351787,135.76,135.73,3.73759962]
[1725042340264,0.0515787,135.76,135.73,0.05329962]
[1725042340469,1.4777787,135.76,135.73,0.05329962]
[1725042341066,3.6837,135.75,135.73,0.05329962]
[1725042341270,35.34,135.84,135.73,35.39329962]
[1725042341471,35.34,135.84,135.75,35.34]
[1725042341769,3.74926999,135.83,135.75,35.34]
[1725042342063,3.682,135.82,135.75,28.28]
[1725042342255,0.05314944,135.8,135.77,0.05108717]
[1725042343453,0.05314944,135.8,135.79,3.6825]
[1725042343865,0.05314944,135.8,135.78,3.6828]
[1725042344061,0.05314944,135.8,135.77,0.05108717]
[1725042344464,0.05314944,135.8,135.79,3.6827]
[1725042346374,0.05314944,135.8,135.78,3.6828]
[1725042346869,0.05314944,135.8,135.79,3.6827]
[1725042347174,0.05314944,135.8,135.77,0.05108717]
[1725042347379,3.6829,135.78,135.77,0.05108717]
[1725042347673,0.05314944,135.8,135.77,0.05108717]
[1725042347977,3.73574944,135.8,135.77,3.73418717]
[1725042348176,0.05314944,135.8,135.77,0.05108717]
[1725042348879,3.6828,135.79,135.77,3.73418717]
[1725042349228,0.05314944,135.8,135.77,0.05108717]
[1725042349370,0.05314944,135.8,135.78,3.6827]
[1725042349568,0.05314944,135.8,135.77,0.05108717]
[1725042349979,3.73574944,135.8,135.77,3.73408717]
[1725042351071,3.73574944,135.8,135.78,3.6829]
[1725042351673,0.05314944,135.8,135.78,3.6829]
[1725042352573,3.73554944,135.8,135.78,3.6829]
[1725042353380,0.05314944,135.8,135.78,3.6829]
[1725042353579,0.05314944,135.8,135.77,35.41108717]
[1725042354182,0.05314944,135.8,135.79,3.6827]
[1725042355970,3.6812,135.85,135.82,3.6818]
[1725042356567,2.6932,135.87,135.81,35.36]
[1725042356767,35.36,135.92,135.81,35.36]
[1725042357008,0.05001091,135.88,135.87,3.6805]
[1725042357171,4.0503,135.91,135.87,3.6805]
[1725042357172,0.0567553,135.89,135.87,3.6805]
[1725042357781,0.0567553,135.89,135.86,0.04905941]
[1725042358082,0.0567553,135.89,135.88,3.6802]
[1725042358976,0.0567553,135.89,135.86,0.04905941]
[1725042359369,1.65338907,135.95,135.87,35.36]
[1725042359590,1.65338907,135.95,135.89,35.36]
[1725042359881,1.65338907,135.95,135.92,3.6789]
[1725042360069,5.27679538,135.95,135.89,35.36]
[1725042360465,0.05674092,135.93,135.91,0.05678389]
[1725042360979,0.05674092,135.93,135.91,3.73598389]
[1725042361367,0.05674092,135.93,135.91,0.05678389]
[1725042362679,0.05674092,135.93,135.92,3.6791]
[1725042364381,0.05674092,135.93,135.91,0.05678389]
[1725042365484,0.05674092,135.93,135.92,3.6791]
[1725042368782,0.05674092,135.93,135.91,0.05678389]
[1725042370389,0.05674092,135.93,135.91,3.73608389]
[1725042370590,0.05674092,135.93,135.91,0.05678389]
[1725042370982,0.05674092,135.93,135.92,3.6791]
[1725042371983,0.05674092,135.93,135.92,31.9291]
[1725042374480,1.65338907,135.95,135.94,3.6786]
[1725042374686,1.65338907,135.95,135.94,31.9286]
[1725042377587,0.9591779,136.0,135.94,28.25]
[1725042377796,2.7552,136.06,135.98,28.25]
[1725042378085,3.60151445,136.08,135.98,28.25]
[1725042378292,4.1331,136.07,135.98,28.25]
[1725042378485,0.048405,136.04,136.01,31.98211893]
[1725042378694,0.048405,136.04,136.01,28.30561893]
[1725042379193,0.048405,136.04,136.03,3.6762]
[1725042379594,0.048405,136.04,136.03,31.9262]
[1725042379989,0.048405,136.04,136.03,3.6762]
[1725042380192,0.048405,136.04,136.01,0.05561893]
[1725042380193,0.048405,136.04,136.02,3.6763]
[1725042380786,0.048405,136.04,136.03,3.6762]
[1725042384698,0.048405,136.04,135.92,89.70531352]
[1725042384889,35.28,136.06,135.94,35.28]
[1725042385089,3.6768,136.01,135.97,3.6777]
[1725042385497,38.92691764,136.06,135.97,3.6777]
[1725042385702,0.04638363,136.03,136.0,0.04808055]
[1725042386341,3.6767,136.01,136.0,0.04808055]
[1725042388201,3.6779,135.97,135.94,35.28]
[1725042388436,3.59521242,135.99,135.92,124.98531352]
[1725042388599,35.28,136.03,135.94,3.6784]
[1725042388902,3.6779,135.97,135.94,3.6784]
[1725042389092,3.64264363,135.96,135.9,35.28]
[1725042389292,35.28,136.01,135.92,0.05505537]
[1725042389293,3.6789,135.93,135.92,0.05505537]
[1725042389499,0.04694056,135.94,135.91,3.72720771]
[1725042389697,0.04694056,135.94,135.91,0.04800771]
[1725042390598,0.04694056,135.94,135.93,3.6789]
[1725042390798,0.04694056,135.94,135.91,0.04800771]
[1725042391204,0.04694056,135.94,135.92,3.6789]
[1725042391607,0.04694056,135.94,135.91,0.04800771]
[1725042392400,0.04694056,135.94,135.93,3.6789]
[1725042393307,35.28,136.04,135.93,35.28]
[1725042393497,39.6001,136.04,135.93,35.28]
[1725042393894,3.6772,136.0,135.97,3.6776]
[1725042394400,3.72800509,136.0,135.97,3.72465007]
[1725042395002,0.05080509,136.0,135.98,3.6774]
[1725042395305,0.05080509,136.0,135.97,0.04705007]
[1725042395900,0.05080509,136.0,135.99,3.6772]
[1725042396394,0.05080509,136.0,135.97,0.04705007]
[1725042397020,0.05080509,136.0,135.97,35.32705007]
[1725042397606,3.64691764,136.06,135.99,35.28]
[1725042397804,2.673,136.08,136.01,35.28]
[1725042397998,2.673,136.08,135.99,35.28]
[1725042398199,1.3042,136.08,136.01,35.28]
[1725042398393,4.54566595,136.09,136.03,3.6761]
[1725042398594,0.87096595,136.09,136.06,35.28]
[1725042398798,0.87096595,136.09,136.08,35.28]
[1725042399003,0.91746851,136.09,136.08,3.6748]
[1725042399205,0.91746851,136.09,136.06,35.28]
[1725042399703,0.91746851,136.09,136.06,38.9551]
[1725042400215,0.91746851,136.09,136.05,0.05296448]
[1725042400401,0.91746851,136.09,136.05,35.33296448]
[1725042400602,0.91746851,136.09,136.05,0.05296448]
[1725042401100,3.60344013,136.08,136.05,0.05296448]
[1725042401507,3.60344013,136.08,135.86,35.28]
[1725042401508,35.28,136.07,135.92,3.76370738]
[1725042401707,35.28,136.07,135.96,35.28]
[1725042401903,3.676,136.04,135.96,35.28]
[1725042402111,3.63067675,136.07,135.98,35.28]
[1725042402406,3.6754,136.06,135.99,3.75525159]
[1725042402606,0.05441383,136.04,136.01,0.04834027]
[1725042402902,0.05441383,136.04,136.01,3.72484027]
[1725042403102,0.05441383,136.04,136.01,0.04834027]
[1725042403896,0.87096595,136.09,136.03,35.28]
[1725042404101,0.87096595,136.09,136.05,35.28]
[1725042404505,0.87096595,136.09,136.06,3.6751]
[1725042404808,0.87096595,136.09,136.05,35.28]
[1725042405127,0.05157667,136.08,136.07,3.6751]
[1725042405899,2.6434,136.17,136.07,35.28]
[1725042406104,2.6434,136.17,136.1,35.28]
[1725042406307,6.3158,136.17,136.1,35.28]
[1725042406506,6.3158,136.17,136.12,3.6735]
[1725042406701,2.6434,136.17,136.1,35.28]
[1725042407001,0.04841498,136.15,136.12,0.05549141]
[1725042407219,35.28,136.16,136.06,35.28]
[1725042407404,2.6434,136.17,136.02,1.3887]
[1725042407710,5.00887905,136.19,136.1,35.28]
[1725042407909,3.6731,136.15,136.1,35.28]
[1725042408109,0.05113228,136.14,136.11,0.05217333]
[1725042408418,3.6737,136.12,136.11,0.05217333]
[1725042409801,1.3091,136.13,136.02,36.6687]
[1725042410006,1.3091,136.13,136.02,35.28]
[1725042410007,1.3448,136.11,136.02,35.28]
[1725042410207,3.60159432,136.1,136.02,35.28]
[1725042410507,1.3448,136.11,136.06,35.28]
[1725042410707,5.08709308,136.11,136.07,0.04819539]
[1725042410908,0.05660321,136.1,136.07,3.72319539]
[1725042411212,0.05660321,136.1,136.07,0.04819539]
[1725042411403,0.05660321,136.1,136.07,3.72319539]
[1725042412106,0.05660321,136.1,136.07,0.04819539]
[1725042412704,0.05660321,136.1,136.09,3.6745]
[1725042412901,1.35063452,136.16,136.08,35.28]
[1725042413107,1.3003,136.17,136.06,35.28]
[1725042413108,1.3003,136.17,136.11,35.28]
[1725042413809,0.05160573,136.15,136.13,0.04899031]
[1725042414111,0.39594037,136.23,136.14,35.28]
[1725042414311,4.06684037,136.23,136.18,3.672]
[1725042414609,0.39594037,136.23,136.18,3.672]
[1725042414814,0.39594037,136.23,136.17,35.28]
[1725042415014,0.05272609,136.21,136.19,0.05415858]
[1725042415207,0.05272609,136.21,136.19,35.33415858]
[1725042416213,0.05272609,136.21,136.2,3.6716]
[1725042416514,0.05272609,136.21,136.19,35.33415858]
[1725042416712,3.6695,136.28,136.22,3.671]
[1725042416907,0.31594391,136.35,136.23,35.28]
[1725042416908,1.4282,136.33,136.23,35.28]
[1725042417115,5.04846118,136.33,136.23,35.28]
[1725042417420,3.6693,136.29,136.25,3.67]
[1725042417743,0.05468717,136.28,136.25,3.67]
[1725042417930,0.05468717,136.28,136.26,0.05335924]
[1725042420710,3.6697,136.27,136.26,0.05335924]
[1725042421421,0.05468717,136.28,136.26,0.05335924]
[1725042421819,0.31594391,136.35,136.27,35.28]
[1725042422313,4.00741826,136.35,136.3,3.6688]
[1725042422507,4.00741826,136.35,136.27,35.28]
[1725042422708,3.6682,136.33,136.29,3.669]
[1725042422907,0.05231863,136.32,136.3,35.33198952]
[1725042423516,0.31594391,136.35,136.31,35.28]
[1725042423810,0.31594391,136.35,136.34,35.28]
[1725042424712,0.27594391,136.35,136.34,35.28]
[1725042425614,0.54625225,136.37,136.34,35.28]
[1725042425816,0.54625225,136.37,136.36,35.28]
[1725042426029,0.54625225,136.37,136.34,35.28]
[1725042426225,1.4003,136.45,136.37,0.05311943]
[1725042426423,3.63999435,136.44,136.37,0.05311943]
[1725042426720,3.6659,136.42,136.38,3.6667]
[1725042426925,3.70196886,136.44,136.39,0.05401155]
[1725042427155,1.3939,136.47,136.39,35.33401155]
[1725042427321,2.7999,136.47,136.39,35.33401155]
[1725042428523,3.6654,136.44,136.4,3.6661]
[1725042428719,3.6654,136.44,136.41,0.04665163]
[1725042429126,3.6655,136.43,136.41,0.04665163]
[1725042429319,2.7999,136.47,136.41,0.04665163]
[1725042429716,3.6657,136.42,136.41,0.04665163]
[1725042431622,3.6656,136.43,136.41,0.04665163]
[1725042431827,3.65478843,136.45,136.41,0.04665163]
[1725042432129,3.6656,136.43,136.41,0.04665163]
[1725042432365,2.7999,136.47,136.41,35.32665163]
[1725042432523,35.28,136.46,136.41,0.04665163]
[1725042432727,3.6657,136.42,136.41,0.04665163]
[1725042432935,7.30105781,136.42,136.41,0.04665163]
[1725042433316,7.30105781,136.42,136.35,38.9473]
[1725042433317,3.63535781,136.42,136.33,35.28]
[1725042433526,35.28,136.42,136.33,35.28]
[1725042433718,38.85821953,136.42,136.33,35.28]
[1725042433922,3.6674,136.36,136.33,35.28]
[1725042434123,46.23021953,136.42,136.33,35.28]
[1725042434323,0.04665163,136.39,136.36,0.04763755]
[1725042434727,0.04665163,136.39,136.29,35.28]
[1725042434927,1.3231,136.39,136.29,35.28]
[1725042435431,35.28,136.38,136.29,35.28]
[1725042435631,0.05179531,136.35,136.32,0.04791324]
[1725042435834,3.6681,136.33,136.32,0.04791324]
[1725042436831,3.6696,136.28,136.25,35.28]
[1725042437224,3.63095348,136.29,136.21,2.7367]
[1725042437428,35.28,136.3,136.16,4.0453]
[1725042437728,38.91462259,136.3,136.19,35.28]
[1725042438030,3.671,136.23,136.22,0.05165439]
[1725042438231,35.28,136.28,136.16,5.0004]
[1725042438427,3.672,136.19,136.16,1.3278]
[1725042438627,3.58692413,136.23,136.15,35.28]
[1725042438928,1.3357,136.27,136.19,35.28]
[1725042439134,1.3357,136.27,136.22,0.0474091]
[1725042439328,0.04922235,136.24,136.22,0.0474091]
[1725042440223,35.32922235,136.24,136.16,35.28]
[1725042440435,35.28,136.24,136.13,35.28]
[1725042440623,3.69669202,136.23,136.15,35.28]
[1725042440831,1.3357,136.27,136.17,35.28]
[1725042441236,0.04991996,136.23,136.21,0.05124287]
[1725042441538,3.78698892,136.23,136.21,0.05124287]
[1725042441803,0.04991996,136.23,136.21,0.05124287]
[1725042442034,3.80424088,136.23,136.21,0.05124287]
[1725042442230,3.80424088,136.23,136.17,3.6723]
[1725042442428,35.28,136.2,136.02,7.3529]
[1725042442634,35.28,136.18,136.08,35.28]
[1725042443023,5.15952092,136.23,136.08,35.28]
[1725042443024,35.28,136.2,136.1,35.28]
[1725042443333,0.05281378,136.16,136.14,0.05365707]
[1725042443531,0.05492558,136.16,136.14,0.05292199]
[1725042443926,0.05492558,136.16,136.15,3.6729]
[1725042444827,1.4052,136.23,136.21,3.6712]
[1725042445032,5.076,136.23,136.18,35.28]
[1725042445228,3.72576913,136.22,136.13,35.28]
[1725042445434,3.74817148,136.21,136.16,3.6725]
[1725042445633,7.41957148,136.21,136.16,3.6725]
[1725042445946,0.04729908,136.2,136.17,0.05318554]
[1725042446134,0.05201552,136.2,136.18,35.28]
[1725042446342,0.05201552,136.2,136.19,35.28]
[1725042446639,1.3491,136.29,136.22,3.6708]
[1725042446987,2.7018,136.29,136.22,35.28]
[1725042447344,35.28,136.27,136.17,35.28]
[1725042447530,0.05586631,136.23,136.21,0.05306617]
[1725042447743,7.34770407,136.22,136.21,0.05306617]
[1725042448434,3.6712,136.22,136.21,0.05306617]
[1725042448642,3.72197255,136.23,136.21,0.05306617]
[1725042448943,0.05117255,136.23,136.21,0.05306617]
[1725042449140,3.671,136.22,136.21,0.05306617]
[1725042449330,0.05117255,136.23,136.21,0.05306617]
[1725042449838,1.3121,136.26,136.1,7.3483]
[1725042450039,35.28,136.25,136.14,35.28]
[1725042450336,3.6711,136.22,136.14,35.28]
[1725042450532,3.74772142,136.25,136.16,35.28]
[1725042450732,35.28,136.28,136.18,35.28]
[1725042451039,0.04999522,136.24,136.19,0.05205472]
[1725042451229,0.04999522,136.24,136.2,0.04677616]
[1725042451433,35.32999522,136.24,136.2,0.04677616]
[1725042451842,3.6713,136.21,136.2,0.04677616]
[1725042452339,35.32999522,136.24,136.2,0.04677616]
[1725042452543,0.04999522,136.24,136.2,0.04677616]
[1725042453042,3.6709,136.23,136.2,0.04677616]
[1725042453261,0.04999522,136.24,136.2,0.04677616]
[1725042453634,0.04999522,136.24,136.22,3.6709]
[1725042454039,0.04999522,136.24,136.2,35.32677616]
[1725042454241,0.04999522,136.24,136.2,0.04677616]
[1725042454443,0.04999522,136.24,136.21,3.6711]
[1725042455336,0.04999522,136.24,136.2,35.32677616]
[1725042455737,0.04999522,136.24,136.23,3.6708]
[1725042456144,2.756,136.33,136.22,35.28]
[1725042456380,1.4088,136.33,136.25,35.28]
[1725042456855,3.6685,136.32,136.29,3.669]
[1725042457040,0.04797299,136.32,136.29,0.05061061]
[1725042457445,0.04797299,136.32,136.3,3.6686]
[1725042457746,0.04797299,136.32,136.29,0.05061061]
[1725042457747,37.9625,136.42,136.29,35.33061061]
[1725042457947,39.3834,136.42,136.29,35.28]
[1725042458148,3.6673,136.36,136.32,3.6682]
[1725042458454,3.72836513,136.37,136.29,35.28]
[1725042458635,0.05378961,136.34,136.32,0.05033165]
[1725042458843,0.05042297,136.34,136.32,0.0485728]
[1725042459042,3.6682,136.33,136.32,0.0485728]
[1725042461043,0.05042297,136.34,136.25,35.28]
[1725042461240,3.75038303,136.35,136.25,35.28]
[1725042461443,3.6695,136.28,136.25,38.9501]
[1725042461748,37.9337,136.34,136.23,36.6751]
[1725042461956,35.28,136.32,136.21,38.0168]
[1725042462245,0.04793412,136.3,136.27,0.05535239]
[1725042462747,3.6694,136.28,136.27,0.05535239]
[1725042462962,7.25298157,136.28,136.27,0.05535239]
[1725042463443,3.6694,136.28,136.27,0.05535239]
[1725042463847,7.34619506,136.28,136.27,0.05535239]
[1725042464050,3.6694,136.28,136.27,0.05535239]
[1725042464253,0.04793412,136.3,136.27,0.05535239]
[1725042464658,3.6693,136.29,136.27,0.05535239]
[1725042464956,0.04793412,136.3,136.27,0.05535239]
[1725042465346,3.6694,136.28,136.27,0.05535239]
[1725042465543,7.40894902,136.28,136.27,0.05535239]
[1725042465851,3.6705,136.24,136.19,35.28]
[1725042466151,3.6221147,136.26,136.19,35.28]
[1725042466350,3.67,136.26,136.22,3.6708]
[1725042466552,3.72725172,136.27,136.22,3.6708]
[1725042466794,0.04957601,136.26,136.23,0.05306534]
[1725042467054,3.6702,136.25,136.23,0.05306534]
[1725042467255,0.04957601,136.26,136.23,0.05306534]
[1725042468158,3.6703,136.25,136.23,0.05306534]
[1725042468451,0.04957601,136.26,136.23,0.05306534]
[1725042468656,0.04957601,136.26,136.24,3.6704]
[1725042469247,0.04957601,136.26,136.23,3.72376534]
[1725042469554,0.04957601,136.26,136.23,0.05306534]
[1725042469751,0.04957601,136.26,136.24,3.6703]
[1725042469949,0.04957601,136.26,136.23,35.33306534]
[1725042470155,0.04957601,136.26,136.25,3.6702]
[1725042472057,3.6688,136.31,136.25,35.28]
[1725042472360,35.28,136.26,136.15,35.28]
[1725042472660,3.6714,136.21,136.17,3.6722]
[1725042472963,0.04661182,136.2,136.18,0.053715]
[1725042473162,0.05273837,136.2,136.18,0.053715]
[1725042474564,0.05273837,136.2,136.19,3.6718]
[1725042478957,0.05273837,136.2,136.18,3.725615]
[1725042479168,0.05273837,136.2,136.18,0.053715]
[1725042479365,3.72453837,136.2,136.18,0.053715]
[1725042479664,0.05273837,136.2,136.18,0.053715]
[1725042480050,3.6718,136.19,136.18,0.053715]
[1725042480462,35.33273837,136.2,136.07,35.28]
[1725042480655,35.28,136.16,136.07,38.0186]
[1725042480860,38.94522262,136.16,136.08,3.72615061]
[1725042481049,38.94522262,136.16,136.07,38.0186]
[1725042481251,38.94522262,136.16,136.1,3.6741]
[1725042481455,38.94522262,136.16,136.12,0.04778826]
[1725042481456,0.05226678,136.14,136.12,0.04778826]
[1725042481662,3.6737,136.13,136.12,0.04778826]
[1725042481864,0.05226678,136.14,136.12,0.04778826]
[1725042483165,0.05226678,136.14,136.13,3.6735]
[1725042483486,4.1135,136.23,136.13,35.3]
[1725042483661,3.6716,136.2,136.16,3.6725]
[1725042483959,4.1135,136.23,136.14,1.3293]
[1725042484161,3.6715,136.21,136.14,1.3293]
[1725042484358,0.04703196,136.19,136.16,0.05624267]
[1725042485065,0.04703196,136.19,136.18,3.672]
[1725042485271,35.26,136.25,136.16,0.05624267]
[1725042485472,1.3128,136.28,136.17,35.26]
[1725042485473,35.26,136.27,136.17,35.26]
[1725042485666,35.26,136.25,136.14,1.3293]
[1725042485962,4.91128036,136.28,136.14,1.3293]
[1725042485963,35.26,136.23,136.14,1.3293]
[1725042486156,0.04896024,136.2,136.17,3.72079776]
[1725042486563,3.72076024,136.2,136.17,0.04859776]
[1725042487463,0.04896024,136.2,136.17,0.04859776]
[1725042487961,0.04896024,136.2,136.19,3.6718]
[1725042488879,36.614,136.27,136.18,1.3385]
[1725042489062,35.26,136.25,136.14,36.5893]
[1725042489262,35.26,136.25,136.18,3.672]
[1725042489263,3.6714,136.21,136.18,3.672]
[1725042489560,35.26,136.25,136.15,1.3385]
[1725042489765,0.04861626,136.21,136.19,0.05183244]
[1725042490287,3.72011626,136.21,136.19,0.05183244]
[1725042490666,0.04861626,136.21,136.19,0.05183244]
[1725042491069,3.77871689,136.21,136.19,0.05183244]
[1725042491264,0.04861626,136.21,136.19,0.05183244]
[1725042491805,3.66748567,136.21,136.19,0.05183244]
[1725042491967,3.66748567,136.21,136.04,7.3516]
[1725042491968,3.61886941,136.21,136.12,35.26]
[1725042492173,35.26,136.23,136.13,3.6124308]
[1725042492474,1.4338,136.24,136.15,35.26]
[1725042492766,3.6712,136.22,136.15,35.26]
[1725042492983,0.05311517,136.2,136.17,0.05339219]
[1725042493867,0.05311517,136.2,136.17,3.72569219]
[1725042494575,3.72471517,136.2,136.17,0.05339219]
[1725042494776,0.05311517,136.2,136.17,0.05339219]
[1725042495076,3.672,136.19,136.17,0.05339219]
[1725042495277,0.05311517,136.2,136.17,0.05339219]
[1725042495675,3.6721,136.18,136.17,0.05339219]
[1725042497776,1.306,136.19,136.17,0.05339219]
[1725042498480,3.6721,136.18,136.17,0.05339219]
[1725042500982,1.306,136.19,136.17,0.05339219]
[1725042501785,3.6721,136.18,136.17,0.05339219]
[1725042502283,1.45341517,136.2,136.17,0.05339219]
[1725042502284,0.05311517,136.2,136.17,0.05339219]
[1725042503484,0.05311517,136.2,136.18,3.6719]
[1725042503685,0.05311517,136.2,136.17,0.05339219]
[1725042503991,3.72481517,136.2,136.17,3.72559219]
[1725042504190,0.05311517,136.2,136.17,0.05339219]
[1725042504490,0.05311517,136.2,136.17,3.72559219]
[1725042504683,0.05311517,136.2,136.17,0.05339219]
[1725042505081,0.05311517,136.2,136.19,3.6718]
[1725042505685,3.59848036,136.28,136.18,36.5998]
[1725042505901,4.2154,136.3,136.21,35.26]
[1725042506088,35.26,136.35,136.25,35.26]
[1725042506388,3.6688,136.31,136.26,3.6699]
[1725042506582,3.6688,136.31,136.27,0.05236723]
[1725042506778,0.0539268,136.3,136.27,0.05236723]
[1725042507187,0.0539268,136.3,136.28,3.6692]
[1725042507389,0.0539268,136.3,136.27,0.05236723]
[1725042508488,35.26,136.29,136.19,35.26]
[1725042508685,36.658,136.29,136.19,35.26]
[1725042509047,3.6702,136.26,136.21,3.6712]
[1725042509186,3.63378846,136.26,136.19,35.26]
[1725042509383,3.6704,136.25,136.2,3.6714]
[1725042509588,0.05556311,136.24,136.21,0.04831586]
[1725042510381,0.05556311,136.24,136.21,35.30831586]
[1725042510590,0.05556311,136.24,136.22,3.671]
[1725042510890,0.05556311,136.24,136.23,35.26]
[1725042511127,35.26,136.33,136.25,3.6701]
[1725042511129,3.6692,136.29,136.25,3.6701]
[1725042511394,38.0342,136.33,136.23,35.26]
[1725042511587,3.669,136.3,136.26,3.67]
[1725042511787,2.7742,136.33,136.25,35.26]
[1725042511994,0.05284565,136.3,136.28,0.05499]
[1725042513793,3.72184565,136.3,136.28,0.05499]
[1725042513985,0.05284565,136.3,136.28,0.05499]
[1725042514390,3.6691,136.29,136.28,0.05499]
[1725042515092,3.67,136.26,136.22,3.6709]
[1725042515306,1.3199,136.3,136.21,35.26]
[1725042516194,0.05138372,136.27,136.24,0.05600272]
[1725042516600,0.05138372,136.27,136.24,3.72630272]
[1725042516991,0.05138372,136.27,136.25,35.26]
[1725042517187,0.05138372,136.27,136.26,3.67]
[1725042518448,0.05138372,136.27,136.24,0.05600272]
[1725042518892,3.72118372,136.27,136.24,0.05600272]
[1725042519098,0.05138372,136.27,136.24,0.05600272]
[1725042519398,0.05138372,136.27,136.26,3.67]
[1725042520899,3.60249611,136.34,136.25,35.26]
[1725042521197,2.6945,136.37,136.28,35.26]
[1725042521498,2.6945,136.37,136.32,3.6681]
[1725042521695,7.46859968,136.36,136.33,0.05099744]
[1725042522001,7.46859968,136.36,136.33,3.71899744]
[1725042522294,7.46859968,136.36,136.33,0.05099744]
[1725042523302,3.6676,136.35,136.33,0.05099744]
[1725042523707,39.00964942,136.36,136.26,36.6346]
[1725042524201,3.6684,136.32,136.26,36.6346]
[1725042524396,39.00964942,136.36,136.26,36.6346]
[1725042524797,0.05390199,136.32,136.3,0.04735354]
[1725042525197,3.72230199,136.32,136.3,0.04735354]
[1725042525403,0.05390199,136.32,136.3,0.04735354]
[1725042525905,3.6686,136.31,136.3,0.04735354]
[1725042526107,0.05390199,136.32,136.3,0.04735354]
[1725042526511,3.72240199,136.32,136.3,0.04735354]
[1725042526903,3.6686,136.31,136.3,0.04735354]
[1725042530318,0.05390199,136.32,136.3,0.04735354]
[1725042530923,3.6686,136.31,136.3,0.04735354]
[1725042531917,3.72240199,136.32,136.3,0.04735354]
[1725042532322,0.05390199,136.32,136.3,0.04735354]
[1725042533072,3.6686,136.31,136.3,0.04735354]
[1725042534231,35.26,136.32,136.24,3.6705]
[1725042534436,1.3243,136.31,136.24,3.6705]
[1725042534831,4.9931,136.31,136.26,3.6699]
[1725042535224,0.05407856,136.3,136.27,0.05285304]
[1725042535426,0.05156083,136.3,136.27,0.05177364]
[1725042535926,0.05156083,136.3,136.29,3.6691]
[1725042537020,0.05156083,136.3,136.27,0.05177364]
[1725042537825,0.05156083,136.3,136.29,3.6691]
[1725042542237,0.05156083,136.3,136.29,38.9291]
[1725042542937,0.05156083,136.3,136.29,3.6691]
[1725042543127,0.05156083,136.3,136.27,0.05177364]
[1725042543329,3.6691,136.29,136.27,0.05177364]
[1725042543526,0.05156083,136.3,136.27,0.05177364]
[1725042543726,3.6691,136.29,136.27,0.05177364]
[1725042543931,0.05156083,136.3,136.27,0.05177364]
[1725042544134,0.05156083,136.3,136.27,3.72127364]
[1725042544443,0.05156083,136.3,136.27,0.05177364]
[1725042544444,3.6693,136.29,136.27,0.05177364]
[1725042544632,0.05156083,136.3,136.27,0.05177364]
[1725042544832,3.6692,136.29,136.27,0.05177364]
[1725042545227,0.05156083,136.3,136.27,0.05177364]
[1725042545431,3.72056083,136.3,136.27,0.05177364]
[1725042545847,0.05156083,136.3,136.27,0.05177364]
[1725042546050,3.6694,136.29,136.27,0.05177364]
[1725042546668,3.6694,136.28,136.27,0.05177364]
[1725042547643,3.6701,136.26,136.22,3.6709]
[1725042548035,3.6698,136.27,136.2,35.26]
[1725042548230,35.26,136.29,136.22,3.6708]
[1725042548430,2.756,136.3,136.22,35.26]
[1725042548631,0.05329634,136.27,136.24,0.05171867]
[1725042548836,0.05329634,136.27,136.24,35.31171867]
[1725042549243,3.63692737,136.34,136.31,3.6686]
[1725042549445,1.3839,136.36,136.29,35.26]
[1725042549638,3.6675,136.35,136.29,35.26]
[1725042549836,3.6675,136.35,136.31,3.6684]
[1725042550240,0.05535832,136.34,136.32,0.05149541]
[1725042550539,3.72315832,136.34,136.32,0.05149541]
[1725042551337,0.05535832,136.34,136.32,0.05149541]
[1725042551741,1.3539,136.4,136.33,35.26]
[1725042551940,1.3539,136.4,136.35,35.26]
[1725042552338,5.08245838,136.4,136.33,35.26]
[1725042552646,1.3539,136.4,136.33,35.26]
[1725042552979,0.04975125,136.38,136.35,3.72263292]
[1725042553637,0.04975125,136.38,136.35,0.05523292]
[1725042553833,3.71655125,136.38,136.35,0.05523292]
[1725042554033,0.04975125,136.38,136.35,0.05523292]